lending/lending_fUSD_20250131
["ID","MTS","AMOUNT","RATE_DAILY","PERIOD"]
[351024681,1738297852794,-502.37704829,0.00019178,2]
[351024683,1738297852803,-846.65,0.00019178,2]
[351024684,1738297852812,-500.0,0.00019178,2]
[351024686,1738297852822,-2575.84,0.00019178,2]
[351024688,1738297852831,-12152.46,0.00019178,2]
[351024690,1738297852840,-6475.46,0.00019178,2]
[351024693,1738297852850,-7021.04,0.00019178,2]
[351024695,1738297852859,-7488.0,0.00019178,2]
[351024697,1738297852869,-500.0,0.00019178,2]
[351024699,1738297852879,-899.8,0.00019178,2]
[351024701,1738297852889,-2264.52,0.00019178,2]
[351024703,1738297852898,-999.58,0.00019178,2]
[351024704,1738297852907,-9913.28,0.00019178,2]
[351024705,1738297852918,-500.0,0.00019178,2]
[351024706,1738297852936,-2964.77,0.00019178,2]
[351024707,1738297852951,-6259.73,0.00019178,2]
[351024708,1738297852966,-500.0,0.00019178,2]
[351024709,1738297852976,-500.0,0.00019178,2]
[351024710,1738297852987,-500.0,0.00019178,2]
[351024711,1738297852996,-4436.04,0.00019178,2]
[351024712,1738297853006,-2774.79,0.00019178,2]
[351024713,1738297853016,-3925.0,0.00019178,2]
[351024714,1738297853027,-511.86815597,0.00019178,2]
[351024715,1738297853038,-500.0,0.00019178,2]
[351024716,1738297853049,-157.376553,0.00019178,2]
[351024717,1738297853060,-646.45,0.00019178,2]
[351024718,1738297853070,-500.0,0.00019178,2]
[351024720,1738297853080,-694.31,0.00019178,2]
[351024722,1738297853090,-150.0,0.00019178,2]
[351024724,1738297853099,-515.50073703,0.00019178,2]
[351024726,1738297853109,-966.3,0.00019178,2]
[351024728,1738297853120,-1100.61,0.00019178,2]
[351024730,1738297853129,-2881.97,0.00019178,2]
[351024732,1738297853139,-500.0,0.00019178,2]
[351024734,1738297853149,-1028.29,0.00019178,2]
[351024736,1738297853159,-1239.98,0.00019178,2]
[351024738,1738297853168,-836.04,0.00019178,2]
[351024739,1738297853178,-500.0,0.00019178,2]
[351024740,1738297853188,-520.57964031,0.00019178,2]
[351024742,1738297853198,-978.97892659,0.00019178,2]
[351024743,1738297853208,-150.0,0.00019178,2]
[351024744,1738297853217,-500.0,0.00019178,2]
[351024745,1738297853228,-1937.26,0.00019178,2]
[351024746,1738297853237,-2038.59,0.00019178,2]
[351024747,1738297853247,-500.0,0.00019178,2]
[351024748,1738297853257,-500.0,0.00019178,2]
[351024749,1738297853267,-4405.21,0.00019178,2]
[351024750,1738297853277,-2341.57,0.00019178,2]
[351024751,1738297853287,-514.96310052,0.00019178,2]
[351024752,1738297853297,-1866.41,0.00019178,2]
[351024753,1738297853307,-3594.1,0.00019178,2]
[351024754,1738297853317,-4050.32,0.00019178,2]
[351024755,1738297853327,-2164.99,0.00019178,2]
[351024756,1738297853337,-1100.8,0.00019178,2]
[351024758,1738297853346,-500.0,0.00019178,2]
[351024760,1738297853356,-151.0,0.00019178,2]
[351024762,1738297853366,-7587.44,0.00019178,2]
[351024764,1738297853375,-1978.26,0.00019178,2]
[351024766,1738297853385,-513.75369968,0.00019178,2]
[351024768,1738297853395,-1428.77,0.00019178,2]
[351024770,1738297853405,-1965.69,0.00019178,2]
[351024772,1738297853415,-500.0,0.00019178,2]
[351024774,1738297853424,-151.0,0.00019178,2]
[351024776,1738297853433,-910.2,0.00019178,2]
[351024778,1738297853443,-5214.76,0.00019178,2]
[351024781,1738297853459,-10683.78,0.00019178,2]
[351024783,1738297853469,-505.61318156,0.00019178,2]
[351024785,1738297853479,-3841.72,0.00019178,2]
[351024787,1738297853490,-512.76623956,0.00019178,2]
[351024789,1738297853500,-500.0,0.00019178,2]
[351024792,1738297853511,-2952.22,0.00019178,2]
[351024794,1738297853521,-509.59391973,0.00019178,2]
[351024796,1738297853531,-2122.71,0.00019178,2]
[351024798,1738297853542,-2502.41,0.00019178,2]
[351024800,1738297853552,-556.86,0.00019178,2]
[351024802,1738297853562,-826.1,0.00019178,2]
[351024804,1738297853572,-1411.59,0.00019178,2]
[351024806,1738297853581,-151.0,0.00019178,2]
[351024808,1738297853592,-2000.28,0.00019178,2]
[351024810,1738297853602,-151.0,0.00019178,2]
[351024812,1738297853613,-3471.44,0.00019178,2]
[351024814,1738297853623,-569.55,0.00019178,2]
[351024816,1738297853633,-501.0724576,0.00019178,2]
[351024818,1738297853642,-292.44360661,0.00019178,2]
[351024820,1738297853652,-735.8,0.00019178,2]
[351024822,1738297853661,-3269.86,0.00019178,2]
[351024824,1738297853673,-507.43553062,0.00019178,2]
[351024826,1738297853683,-151.0,0.00019178,2]
[351024828,1738297853693,-500.0,0.00019178,2]
[351024830,1738297853704,-500.0,0.00019178,2]
[351024833,1738297853714,-1670.31,0.00019178,2]
[351024834,1738297853724,-203.42095029,0.00019178,2]
[351024835,1738297853734,-2643.55,0.00019178,2]
[351024836,1738297853744,-1985.09,0.00019178,2]
[351024837,1738297853754,-577.2,0.00019178,2]
[351024838,1738297853764,-500.0,0.00019178,2]
[351024839,1738297853774,-500.0,0.00019178,7]
[351024840,1738297853784,-697.65,0.00019178,2]
[351024841,1738297853793,-2098.66,0.00019178,2]
[351024842,1738297853803,-512.16667971,0.00019178,2]
[351024843,1738297853813,-510.48375374,0.00019178,2]
[351024844,1738297853823,-984.65,0.00019178,2]
[351024845,1738297853834,-952.92,0.00019178,2]
[351024846,1738297853844,-500.0,0.00019178,2]
[351024847,1738297853854,-2989.04,0.00019178,2]
[351024848,1738297853864,-1623.24,0.00019178,2]
[351024849,1738297853875,-1405.13,0.00019178,2]
[351024850,1738297853885,-504.38943618,0.00019178,2]
[351024851,1738297853895,-504.88874498,0.00019178,2]
[351024852,1738297853905,-510.77,0.00019178,2]
[351024853,1738297853917,-500.0,0.00019178,2]
[351024854,1738297853928,-500.0,0.00019178,2]
[351024855,1738297853938,-642.77672331,0.00019178,2]
[351024856,1738297853948,-505.25628996,0.00019178,2]
[351024857,1738297853966,-1067.44,0.00019178,2]
[351024858,1738297853976,-500.0,0.00019178,2]
[351024859,1738297853986,-500.0,0.00019178,2]
[351024860,1738297853997,-500.0,0.00019178,2]
[351024861,1738297854008,-500.0,0.00019178,2]
[351024862,1738297854018,-1508.17,0.00019178,2]
[351024863,1738297854028,-500.0,0.00019178,2]
[351024864,1738297854038,-498.93974865,0.00019178,2]
[351024865,1738297854049,-2370.85,0.00019178,2]
[351024866,1738297854061,-7689.3,0.00019178,2]
[351024867,1738297854071,-500.0,0.00019178,2]
[351024868,1738297854082,-500.0,0.00019178,2]
[351024869,1738297854092,-500.0,0.00019178,2]
[351024870,1738297854101,-1545.54,0.00019178,2]
[351024871,1738297854112,-500.0,0.00019178,2]
[351024872,1738297854122,-838.34,0.00019178,2]
[351024873,1738297854132,-2358.97,0.00019178,2]
[351024874,1738297854142,-503.36924954,0.00019178,2]
[351024875,1738297854152,-506.16653762,0.00019178,2]
[351024876,1738297854163,-500.0,0.00019178,2]
[351024877,1738297854173,-502.04836274,0.00019178,2]
[351024878,1738297854183,-316.57510314,0.00019178,2]
[351024879,1738297854195,-1434.7,0.00019178,2]
[351024880,1738297854204,-500.0,0.00019178,2]
[351024881,1738297854214,-500.0,0.00019178,2]
[351024882,1738297854224,-500.0,0.00019178,2]
[351024883,1738297854233,-507.34004611,0.00019178,2]
[351024884,1738297854244,-2086.76,0.00019178,2]
[351024885,1738297854254,-4942.13,0.00019178,2]
[351024886,1738297854266,-520.52162502,0.00019178,2]
[351024887,1738297854276,-507.17996029,0.00019178,2]
[351024888,1738297854289,-500.0,0.00019178,2]
[351024889,1738297854299,-1668.05,0.00019178,2]
[351024890,1738297854309,-508.66085591,0.00019178,2]
[351024891,1738297854320,-2596.0,0.00019178,2]
[351024892,1738297854331,-500.0,0.00019178,2]
[351024893,1738297854341,-174.45983619,0.00019178,2]
[351024894,1738297854351,-150.52,0.00019178,2]
[351024895,1738297854362,-42878.21321427,0.00019178,3]
[351024896,1738297854373,-208.0,0.0001918,2]
[351024897,1738297854383,-622.99799174,0.00019181,3]
[351024898,1738297854393,-301497.44145741,0.00019182,3]
[351024899,1738297854980,-490.44403302,0.00019182,3]
[351024900,1738297854992,-1973.4,0.00019182,3]
[351024901,1738297855013,-102227.49601959,0.00019182,3]
[351024902,1738297855024,-854.55749319,0.00019182,3]
[351024903,1738297855050,-8183.03819307,0.00019182,3]
[351024904,1738297855062,-873.090994,0.00019182,3]
[351024905,1738297855073,-339.959,0.00019182,3]
[351024906,1738297855084,-382.92113158,0.00019182,3]
[351024907,1738297855105,-17519.22885053,0.00019182,3]
[351024908,1738297855796,-526.16153686,0.00019178,2]
[351024909,1738297855805,-506.48413102,0.00019178,2]
[351024910,1738297855815,-141.04344541,0.00019178,2]
[351024911,1738297855826,-354.7380626,0.00019178,2]
[351024912,1738297855836,-2466.2619374,0.00019182,3]
[351024913,1738297855848,-4715.45115213,0.00019182,3]
[351024914,1738297855859,-1627.2,0.00019182,3]
[351024915,1738297855897,-2103.20947288,0.00019182,3]
[351024916,1738297855914,-2768.88796534,0.00019182,3]
[351024917,1738297855925,-432.66409938,0.00019182,3]
[351024918,1738297855945,-4074.00590659,0.00019182,3]
[351024919,1738297873009,159.93,0.00010137,2]
[351024922,1738298263538,-152.0,0.00018224,3]
[351024923,1738298263560,-169.74,0.00018278,2]
[351024924,1738298263580,-152.0,0.00018814,4]
[351024925,1738298281798,300.0,0.00019042,2]
[351024926,1738298290401,550.0,0.00013,2]
[351024927,1738298291466,600.0,0.00015,2]
[351024928,1738298292178,400.4034796,0.00018948,2]
[351024929,1738298363712,151.05,0.00018508,30]
[351024931,1738298753569,155.64,0.00010137,2]
[351024932,1738298802283,-251.34104369,0.00016328,2]
[351024933,1738298954089,-153.66895631,0.00016328,2]
[351024934,1738298954111,-155.64,0.00017184,2]
[351024941,1738299032337,-1480.0,0.000172,2]
[351024942,1738299032351,-366.69,0.00018146,2]
[351024943,1738299032361,-280.1,0.00018217,2]
[351024944,1738299032371,-1000.0,0.00018288,2]
[351024945,1738299032381,-150.0,0.00018411,2]
[351024946,1738299032392,-300.0,0.00018424,2]
[351024947,1738299032402,-500.0,0.00018425,2]
[351024948,1738299032412,-500.0,0.00018425,2]
[351024949,1738299032422,-500.0,0.00018425,2]
[351024950,1738299032432,-500.0,0.00018425,2]
[351024951,1738299032443,-500.0,0.00018425,2]
[351024952,1738299032454,-500.0,0.00018425,2]
[351024953,1738299032464,-638.81186,0.00018425,2]
[351024954,1738299032474,-172.91397665,0.00018493,2]
[351024955,1738299032485,-405.01,0.00018591,2]
[351024956,1738299032497,-172.91397665,0.0001874,2]
[351024957,1738299032509,-2337.6863,0.0001899,2]
[351024958,1738299032520,-13247.82770261,0.00019043,2]
[351024959,1738299032529,-150.99,0.00019043,2]
[351024960,1738299032541,-368.94,0.00019043,2]
[351024961,1738299032551,-405.0,0.0001905,2]
[351024962,1738299032560,-2021.0,0.00019051,2]
[351024963,1738299032570,-1271.0,0.00019051,2]
[351024964,1738299032580,-150.0,0.00019051,2]
[351024965,1738299032589,-637.0,0.00019051,2]
[351024966,1738299032599,-568.0,0.00019051,2]
[351024967,1738299032609,-1867.0,0.00019051,2]
[351024968,1738299032619,-782.0,0.00019051,2]
[351024969,1738299032628,-907.0,0.00019051,2]
[351024970,1738299032637,-2952.0,0.00019051,2]
[351024971,1738299032648,-1263.0,0.00019051,2]
[351024972,1738299032657,-538.0,0.00019051,2]
[351024973,1738299032667,-150.0,0.00019051,2]
[351024974,1738299032676,-3908.0,0.00019051,2]
[351024975,1738299032686,-150.0,0.00019051,2]
[351024976,1738299032696,-1079.892,0.00019051,2]
[351024977,1738299032706,-248.10957874,0.00019078,2]
[351024978,1738299032722,-2944.54037407,0.00019078,2]
[351024979,1738299032732,-248.10957872,0.00019147,2]
[351024980,1738299032743,-5000.0,0.0001915,4]
[351024981,1738299032754,-700.0,0.00019164,2]
[351024982,1738299032766,-500.0,0.00019164,2]
[351024983,1738299032778,-592.19,0.00019164,2]
[351024984,1738299032790,-213.32,0.00019168,2]
[351024985,1738299032801,-2944.54037404,0.00019169,2]
[351024986,1738299032812,-500.0,0.00019173,2]
[351024987,1738299032822,-160.24269569,0.00019173,2]
[351024988,1738299032832,-501.82056984,0.00019178,2]
[351024989,1738299032844,-515.68095046,0.00019178,2]
[351024990,1738299032854,-501.45096231,0.00019178,2]
[351024991,1738299032864,-2674.725176,0.00019178,2]
[351024992,1738299032874,-3784.297837,0.00019178,2]
[351024993,1738299032883,-152.930379,0.00019178,2]
[351024995,1738299032893,-500.0,0.00019178,2]
[351024997,1738299032903,-500.0,0.00019178,2]
[351024999,1738299032913,-155.129208,0.00019178,2]
[351025001,1738299032923,-500.0,0.00019178,2]
[351025002,1738299032934,-500.0,0.00019178,2]
[351025003,1738299032945,-500.0,0.00019178,2]
[351025004,1738299032955,-500.0,0.00019178,2]
[351025005,1738299032967,-500.0,0.00019178,2]
[351025006,1738299032977,-500.0,0.00019178,2]
[351025007,1738299032988,-628.68,0.00019178,2]
[351025008,1738299032999,-342.65380805,0.00019178,2]
[351025009,1738299033009,-500.0,0.00019178,2]
[351025010,1738299033019,-500.0,0.00019178,2]
[351025011,1738299033029,-500.0,0.00019178,2]
[351025012,1738299033039,-620.84,0.00019178,2]
[351025013,1738299033049,-500.0,0.00019178,2]
[351025014,1738299033059,-500.0,0.00019178,2]
[351025015,1738299033069,-781.45,0.00019178,2]
[351025016,1738299033079,-545.49996801,0.00019178,2]
[351025017,1738299033089,-500.0,0.00019178,2]
[351025018,1738299033100,-674.98,0.00019178,2]
[351025019,1738299033110,-500.0,0.00019178,2]
[351025020,1738299033121,-462.03081476,0.00019178,2]
[351025021,1738299033131,-500.0,0.00019178,2]
[351025022,1738299033143,-500.0,0.00019178,2]
[351025023,1738299033153,-299.96651925,0.00019178,2]
[351025024,1738299033164,-836.77,0.00019178,2]
[351025025,1738299033175,-796.11,0.00019178,2]
[351025026,1738299033185,-500.0,0.00019178,2]
[351025027,1738299033195,-653.86,0.00019178,2]
[351025028,1738299033206,-500.0,0.00019178,2]
[351025029,1738299033218,-541.96,0.00019178,2]
[351025030,1738299033234,-522.70030377,0.00019178,2]
[351025031,1738299033245,-852.06,0.00019178,2]
[351025032,1738299033256,-500.0,0.00019178,2]
[351025033,1738299033266,-550.78,0.00019178,2]
[351025034,1738299033277,-819.44,0.00019178,2]
[351025035,1738299033288,-500.0,0.00019178,2]
[351025036,1738299033298,-869.85,0.00019178,2]
[351025037,1738299033309,-672.39,0.00019178,2]
[351025038,1738299033320,-500.0,0.00019178,2]
[351025039,1738299033331,-500.0,0.00019178,2]
[351025040,1738299033343,-644.45,0.00019178,2]
[351025041,1738299033357,-500.0,0.00019178,2]
[351025042,1738299033368,-500.0,0.00019178,2]
[351025043,1738299033380,-500.0,0.00019178,2]
[351025044,1738299033391,-500.0,0.00019178,2]
[351025045,1738299033402,-401.32516736,0.00019178,2]
[351025046,1738299033413,-500.0,0.00019178,2]
[351025047,1738299033425,-500.0,0.00019178,2]
[351025048,1738299033437,-500.0,0.00019178,2]
[351025049,1738299033448,-500.0,0.00019178,2]
[351025050,1738299033459,-500.0,0.00019178,2]
[351025051,1738299033469,-500.0,0.00019178,2]
[351025052,1738299033479,-500.0,0.00019178,2]
[351025053,1738299033490,-500.0,0.00019178,2]
[351025054,1738299033500,-500.0,0.00019178,2]
[351025055,1738299033511,-877.19,0.00019178,2]
[351025056,1738299033521,-710.87,0.00019178,2]
[351025057,1738299033532,-500.0,0.00019178,2]
[351025058,1738299033542,-500.0,0.00019178,2]
[351025059,1738299033552,-505.21142942,0.00019178,2]
[351025060,1738299033563,-500.0,0.00019178,2]
[351025061,1738299033573,-949.5,0.00019178,2]
[351025062,1738299033584,-500.0,0.00019178,2]
[351025063,1738299033595,-500.0,0.00019178,2]
[351025064,1738299033605,-500.0,0.00019178,2]
[351025065,1738299033615,-500.0,0.00019178,2]
[351025066,1738299033625,-956.22,0.00019178,2]
[351025067,1738299033635,-511.83052325,0.00019178,2]
[351025068,1738299033645,-833.85,0.00019178,2]
[351025069,1738299033655,-500.0,0.00019178,2]
[351025070,1738299033665,-744.96,0.00019178,2]
[351025071,1738299033674,-500.0,0.00019178,2]
[351025072,1738299033684,-500.0,0.00019178,2]
[351025073,1738299033694,-834.81,0.00019178,2]
[351025074,1738299033703,-500.0,0.00019178,2]
[351025075,1738299033714,-500.0,0.00019178,2]
[351025076,1738299033724,-498.09658384,0.00019178,2]
[351025077,1738299033733,-500.0,0.00019178,2]
[351025078,1738299033743,-500.0,0.00019178,2]
[351025079,1738299033757,-762.69,0.00019178,2]
[351025080,1738299033767,-500.0,0.00019178,2]
[351025081,1738299033778,-500.0,0.00019178,2]
[351025082,1738299033788,-857.86,0.00019178,2]
[351025083,1738299033800,-720.28,0.00019178,2]
[351025084,1738299033815,-861.44,0.00019178,2]
[351025085,1738299033826,-500.0,0.00019178,2]
[351025086,1738299033835,-500.0,0.00019178,2]
[351025087,1738299033845,-500.0,0.00019178,2]
[351025088,1738299033855,-794.46,0.00019178,2]
[351025089,1738299033866,-500.0,0.00019178,2]
[351025090,1738299033875,-500.0,0.00019178,2]
[351025091,1738299033886,-543.29,0.00019178,2]
[351025092,1738299033896,-526.60057294,0.00019178,2]
[351025093,1738299033905,-500.0,0.00019178,2]
[351025094,1738299033915,-836.6,0.00019178,2]
[351025095,1738299033925,-500.0,0.00019178,2]
[351025096,1738299034255,-1056.05,0.00019178,2]
[351025097,1738299034266,-500.0,0.00019178,2]
[351025098,1738299034276,-500.0,0.00019178,2]
[351025099,1738299034287,-527.82900753,0.00019178,2]
[351025100,1738299034297,-500.0,0.00019178,2]
[351025101,1738299034307,-1445.33,0.00019178,2]
[351025102,1738299034317,-1975.72,0.00019178,2]
[351025103,1738299034328,-550.41,0.00019178,2]
[351025104,1738299034339,-646.04,0.00019178,2]
[351025105,1738299034351,-233.22867898,0.00019178,2]
[351025106,1738299034361,-500.0,0.00019178,2]
[351025107,1738299034371,-1374.92,0.00019178,2]
[351025108,1738299034382,-521.15183319,0.00019178,2]
[351025109,1738299034392,-500.0,0.00019178,2]
[351025110,1738299034403,-1562.23,0.00019178,2]
[351025111,1738299034413,-582.75,0.00019178,2]
[351025112,1738299034423,-500.0,0.00019178,2]
[351025113,1738299034433,-1699.24,0.00019178,2]
[351025114,1738299034444,-500.0,0.00019178,2]
[351025115,1738299034454,-1143.68,0.00019178,2]
[351025116,1738299034465,-714.3,0.00019178,2]
[351025117,1738299034476,-500.0,0.00019178,2]
[351025118,1738299034486,-1091.98,0.00019178,2]
[351025119,1738299034509,-500.0,0.00019178,2]
[351025120,1738299034519,-500.0,0.00019178,2]
[351025121,1738299034530,-500.0,0.00019178,2]
[351025122,1738299034540,-746.89,0.00019178,2]
[351025123,1738299034551,-761.7,0.00019178,2]
[351025124,1738299034561,-500.0,0.00019178,2]
[351025125,1738299034571,-1544.26,0.00019178,2]
[351025126,1738299034582,-500.0,0.00019178,2]
[351025127,1738299034592,-1476.45,0.00019178,2]
[351025128,1738299034603,-840.64,0.00019178,2]
[351025129,1738299034613,-500.0,0.00019178,2]
[351025130,1738299034623,-500.0,0.00019178,2]
[351025131,1738299034633,-1030.44,0.00019178,2]
[351025132,1738299034644,-500.0,0.00019178,2]
[351025133,1738299034654,-1231.7,0.00019178,2]
[351025134,1738299034664,-327.85894401,0.00019178,2]
[351025135,1738299034675,-500.0,0.00019178,2]
[351025136,1738299034687,-500.0,0.00019178,2]
[351025137,1738299034697,-1827.84,0.00019178,2]
[351025138,1738299034707,-500.0,0.00019178,2]
[351025139,1738299034716,-500.0,0.00019178,2]
[351025140,1738299034726,-500.0,0.00019178,2]
[351025141,1738299034737,-853.78,0.00019178,2]
[351025142,1738299034747,-760.69,0.00019178,2]
[351025143,1738299034756,-736.44,0.00019178,2]
[351025144,1738299034766,-790.88,0.00019178,2]
[351025145,1738299034777,-560.56,0.00019178,2]
[351025146,1738299034787,-679.16,0.00019178,2]
[351025147,1738299034798,-686.18,0.00019178,2]
[351025148,1738299034808,-500.0,0.00019178,2]
[351025149,1738299034819,-500.0,0.00019178,2]
[351025150,1738299034829,-500.0,0.00019178,2]
[351025151,1738299034839,-603.03283239,0.00019178,2]
[351025152,1738299034849,-809.07,0.00019178,2]
[351025153,1738299034859,-500.0,0.00019178,2]
[351025154,1738299034870,-1169.86,0.00019178,2]
[351025155,1738299034880,-1310.16,0.00019178,2]
[351025156,1738299034890,-500.0,0.00019178,2]
[351025157,1738299034901,-670.18,0.00019178,2]
[351025158,1738299034912,-761.41,0.00019178,2]
[351025159,1738299034924,-522.35,0.00019178,2]
[351025160,1738299034935,-781.67,0.00019178,2]
[351025161,1738299034945,-738.64,0.00019178,2]
[351025162,1738299034955,-511.08608703,0.00019178,2]
[351025163,1738299034966,-293.17915463,0.00019178,2]
[351025164,1738299034976,-756.77,0.00019178,2]
[351025165,1738299034987,-1234.76,0.00019178,2]
[351025166,1738299034996,-665.57,0.00019178,2]
[351025167,1738299035006,-500.0,0.00019178,2]
[351025168,1738299035016,-1196.7,0.00019178,2]
[351025169,1738299035027,-538.58573504,0.00019178,2]
[351025170,1738299035038,-500.0,0.00019178,2]
[351025171,1738299035049,-500.0,0.00019178,2]
[351025172,1738299035058,-612.03,0.00019178,2]
[351025173,1738299035068,-500.0,0.00019178,2]
[351025174,1738299035078,-500.0,0.00019178,2]
[351025175,1738299035090,-1061.66,0.00019178,2]
[351025176,1738299035100,-500.0,0.00019178,2]
[351025177,1738299035110,-1262.21,0.00019178,2]
[351025178,1738299035124,-500.0,0.00019178,2]
[351025179,1738299035134,-500.0,0.00019178,2]
[351025180,1738299035144,-500.0,0.00019178,2]
[351025181,1738299035154,-500.0,0.00019178,2]
[351025182,1738299035164,-500.0,0.00019178,2]
[351025183,1738299035175,-500.0,0.00019178,2]
[351025184,1738299035185,-1334.46,0.00019178,2]
[351025185,1738299035195,-510.38895367,0.00019178,2]
[351025186,1738299035206,-501.91358318,0.00019178,2]
[351025187,1738299035217,-591.47,0.00019178,2]
[351025188,1738299035227,-974.79,0.00019178,2]
[351025189,1738299035237,-337.95400586,0.00019178,2]
[351025190,1738299035247,-500.0,0.00019178,2]
[351025191,1738299035257,-796.98,0.00019178,2]
[351025192,1738299035267,-500.0,0.00019178,2]
[351025193,1738299035278,-1412.16,0.00019178,2]
[351025194,1738299035288,-500.0,0.00019178,2]
[351025195,1738299035299,-520.71806375,0.00019178,2]
[351025196,1738299035310,-848.62,0.00019178,2]
[351025197,1738299035321,-307.21419179,0.00019178,2]
[351025198,1738299035330,-500.0,0.00019178,2]
[351025199,1738299035339,-500.0,0.00019178,2]
[351025200,1738299035353,-500.0,0.00019178,2]
[351025201,1738299035364,-502.18,0.00019178,2]
[351025202,1738299035374,-615.52,0.00019178,2]
[351025203,1738299035384,-726.49,0.00019178,2]
[351025204,1738299035395,-509.62593825,0.00019178,2]
[351025205,1738299035406,-542.57,0.00019178,2]
[351025206,1738299035416,-1577.69,0.00019178,2]
[351025207,1738299035428,-667.3,0.00019178,2]
[351025208,1738299035438,-665.76,0.00019178,2]
[351025209,1738299035448,-811.49,0.00019178,2]
[351025210,1738299035459,-1699.26,0.00019178,2]
[351025211,1738299035469,-500.0,0.00019178,2]
[351025212,1738299035479,-500.0,0.00019178,2]
[351025213,1738299035490,-518.18581101,0.00019178,2]
[351025214,1738299035500,-1904.8,0.00019178,2]
[351025215,1738299035511,-606.87766467,0.00019178,2]
[351025216,1738299035521,-700.12,0.00019178,2]
[351025217,1738299035531,-512.12091804,0.00019178,2]
[351025218,1738299035542,-1111.69,0.00019178,2]
[351025219,1738299035552,-500.0,0.00019178,2]
[351025220,1738299035562,-515.1970464,0.00019178,2]
[351025221,1738299035572,-957.93,0.00019178,2]
[351025222,1738299035582,-809.7,0.00019178,2]
[351025223,1738299035591,-679.22,0.00019178,2]
[351025224,1738299035600,-1708.8,0.00019178,2]
[351025225,1738299035610,-726.57,0.00019178,2]
[351025226,1738299035619,-500.0,0.00019178,2]
[351025227,1738299035629,-668.58,0.00019178,2]
[351025228,1738299035640,-500.0,0.00019178,2]
[351025229,1738299035649,-1321.06,0.00019178,2]
[351025230,1738299035659,-1409.58,0.00019178,2]
[351025231,1738299035671,-500.0,0.00019178,2]
[351025232,1738299035682,-1167.26,0.00019178,2]
[351025233,1738299035692,-500.0,0.00019178,2]
[351025234,1738299035702,-500.0,0.00019178,2]
[351025235,1738299035712,-829.24,0.00019178,2]
[351025236,1738299035722,-500.0,0.00019178,2]
[351025237,1738299035733,-500.0,0.00019178,2]
[351025238,1738299035743,-500.0,0.00019178,2]
[351025239,1738299035754,-177.06379923,0.00019178,2]
[351025240,1738299035765,-500.0,0.00019178,2]
[351025241,1738299035774,-1072.57,0.00019178,2]
[351025242,1738299035785,-500.0,0.00019178,2]
[351025243,1738299035797,-848.6,0.00019178,2]
[351025244,1738299035807,-520.33484793,0.00019178,2]
[351025245,1738299035816,-533.65,0.00019178,2]
[351025246,1738299035826,-989.0,0.00019178,2]
[351025247,1738299035836,-938.63,0.00019178,2]
[351025248,1738299035846,-659.57,0.00019178,2]
[351025249,1738299035856,-1591.83,0.00019178,2]
[351025250,1738299035866,-1045.16,0.00019178,2]
[351025251,1738299035876,-939.22,0.00019178,2]
[351025252,1738299035887,-1562.49,0.00019178,2]
[351025253,1738299035897,-509.87513375,0.00019178,7]
[351025254,1738299035913,-959.01,0.00019178,2]
[351025255,1738299035928,-500.0,0.00019178,2]